fUST/lending_fUST_20250531
["ID","MTS","AMOUNT","RATE_DAILY","PERIOD"]
[363328759,1748676649422,-4431.08689506,0.00021094,2]
[363328760,1748676649432,-430.0,0.00021095,2]
[363328761,1748676649442,-430.0,0.00021095,2]
[363328762,1748676649451,-618.07,0.00021095,2]
[363328763,1748676649460,-241.92296866,0.00021095,2]
[363328764,1748676649472,-457.27703134,0.00021095,2]
[363328765,1748676649481,-1237.53,0.00021095,2]
[363328766,1748676649491,-1471.72,0.00021095,2]
[363328767,1748676649501,-1692.96,0.00021095,2]
[363328768,1748676649511,-430.0,0.00021095,2]
[363328769,1748676649520,-1014.98,0.00021095,2]
[363328770,1748676649530,-1240.81,0.00021095,2]
[363328771,1748676649540,-602.09,0.00021095,2]
[363328772,1748676649549,-4949.7,0.00021095,2]
[363328773,1748676649559,-456.21,0.00021095,2]
[363328774,1748676649569,-889.6,0.00021095,2]
[363328775,1748676649578,-613.13,0.00021095,2]
[363328776,1748676649588,-548.65,0.00021095,2]
[363328777,1748676649598,-414.66,0.00021095,2]
[363328778,1748676649608,-722.57,0.00021095,2]
[363328779,1748676649617,-1150.08,0.00021095,2]
[363328780,1748676649627,-1528.78,0.00021095,2]
[363328781,1748676649635,-438.38,0.00021095,2]
[363328782,1748676649644,-153.841363,0.00021105,2]
[363328783,1748676649653,-160.0,0.00021112,4]
[363328784,1748676649662,-600.0,0.0002112,2]
[363328785,1748676649671,-345.9895388,0.00021149,22]
[363328786,1748676649680,-1963.34401357,0.00021176,4]
[363328787,1748676649689,-17612.31,0.000212,10]
[363328788,1748676649698,-12664.98044988,0.000212,10]
[363328789,1748676649706,-2000.0,0.00021215,2]
[363328790,1748676649716,-2000.0,0.00021215,2]
[363328791,1748676649725,-1514.7535592,0.00021231,2]
[363328792,1748676649733,-504.32502589,0.00021231,2]
[363328793,1748676649743,-2000.0,0.00021231,2]
[363328794,1748676649752,-1007.04766132,0.00021231,2]
[363328795,1748676649761,-111.39027234,0.00021231,2]
[363328796,1748676649773,-2288.60972766,0.00021231,2]
[363328797,1748676649782,-1285.67556329,0.00021231,2]
[363328798,1748676649791,-177.98140521,0.00021233,2]
[363328799,1748676649800,-1152.0,0.0002128,2]
[363328800,1748676649810,-345.9895388,0.00021304,24]
[363328801,1748676649819,-1144.77,0.0002134,2]
[363328802,1748676649828,-153.841363,0.00021364,6]
[363328803,1748676649837,-430.0,0.00021369,2]
[363328804,1748676649846,-164.021384,0.00021369,2]
[363328805,1748676649855,-164.021384,0.00021369,2]
[363328806,1748676649864,-430.0,0.00021369,2]
[363328807,1748676649873,-699.2,0.00021369,2]
[363328808,1748676649882,-618.07,0.00021369,2]
[363328809,1748676649892,-1237.53,0.00021369,2]
[363328810,1748676649901,-1471.72,0.00021369,2]
[363328811,1748676649912,-1692.96,0.00021369,2]
[363328812,1748676649922,-430.0,0.00021369,2]
[363328813,1748676649931,-1014.98,0.00021369,2]
[363328814,1748676649940,-596.48908818,0.00021369,2]
[363328815,1748676649956,-644.32091182,0.00021369,2]
[363328816,1748676649966,-602.09,0.00021369,2]
[363328817,1748676649975,-1758.8141192,0.00021369,2]
[363328818,1748676649987,-3190.8858808,0.00021369,2]
[363328819,1748676649996,-456.21,0.00021369,2]
[363328820,1748676650006,-889.6,0.00021369,2]
[363328821,1748676650015,-613.13,0.00021369,2]
[363328822,1748676650024,-548.65,0.00021369,2]
[363328823,1748676650034,-722.57,0.00021369,2]
[363328824,1748676650043,-1150.08,0.00021369,2]
[363328825,1748676650053,-1528.78,0.00021369,2]
[363328826,1748676650064,-235.1193,0.00021369,2]
[363328827,1748676650074,-438.38,0.00021369,2]
[363328828,1748676650083,-501.66769588,0.00021373,2]
[363328829,1748676650212,-1100.0,0.00021452,2]
[363328830,1748676650225,-345.9895388,0.0002146,25]
[363328831,1748676650234,-2500.0,0.00021486,2]
[363328832,1748676650244,-1591.65197894,0.00021486,5]
[363328833,1748676650302,-33.25990402,0.00021486,5]
[363328834,1748676650350,-774.90751728,0.0002,2]
[363328835,1748676651532,-308.66157307,0.0002,2]
[363328836,1748676651548,-118557.43090965,0.0002,2]
[363328837,1748676651558,-338.43213061,0.00021486,5]
[363328838,1748676651568,-5000.0,0.00021487,2]
[363328839,1748676651577,-296.662294,0.000215,2]
[363328840,1748676651587,-296.662294,0.000215,2]
[363328841,1748676651597,-151.0,0.000215,2]
[363328842,1748676651606,-407.978989,0.000215,2]
[363328843,1748676651614,-407.978989,0.000215,2]
[363328844,1748676651623,-156.456511,0.000215,2]
[363328845,1748676651632,-156.456511,0.000215,2]
[363328846,1748676651642,-153.841363,0.00021528,3]
[363328847,1748676651651,-1952.112929,0.0002156,3]
[363328848,1748676651660,-9902.17,0.000216,2]
[363328849,1748676651669,-345.9895388,0.00021615,27]
[363328850,1748676651678,-151.0,0.00021643,2]
[363328851,1748676651687,-430.0,0.00021643,2]
[363328852,1748676651696,-430.0,0.00021643,2]
[363328853,1748676651704,-699.2,0.00021643,2]
[363328854,1748676651714,-618.07,0.00021643,2]
[363328855,1748676651723,-1237.53,0.00021643,2]
[363328856,1748676651732,-1471.72,0.00021643,2]
[363328857,1748676651742,-1692.96,0.00021643,2]
[363328858,1748676651751,-533.47,0.00021643,2]
[363328859,1748676651760,-151.0,0.00021643,2]
[363328860,1748676651769,-1014.98,0.00021643,2]
[363328861,1748676651779,-1240.81,0.00021643,2]
[363328862,1748676651788,-602.09,0.00021643,2]
[363328863,1748676651798,-4949.7,0.00021643,2]
[363328864,1748676651808,-456.21,0.00021643,2]
[363328865,1748676651817,-889.6,0.00021643,2]
[363328866,1748676651827,-613.13,0.00021643,2]
[363328867,1748676651836,-548.65,0.00021643,2]
[363328868,1748676651846,-151.0,0.00021643,2]
[363328869,1748676651855,-194.418778,0.00021643,2]
[363328870,1748676651864,-2473.478844,0.00021643,2]
[363328871,1748676651874,-2473.478844,0.00021643,2]
[363328872,1748676651883,-722.57,0.00021643,2]
[363328873,1748676651892,-1150.08,0.00021643,2]
[363328874,1748676651901,-1528.78,0.00021643,2]
[363328875,1748676651910,-438.38,0.00021643,2]
[363328876,1748676651919,-4007.26857088,0.00021697,2]
[363328877,1748676651929,-16613.31282326,0.000217,2]
[363328878,1748676651938,-376.864955,0.00021753,2]
[363328879,1748676651948,-376.864955,0.00021753,2]
[363328880,1748676651957,-215.0738,0.0002176,2]
[363328881,1748676651966,-512.66485976,0.00021763,2]
[363328882,1748676651975,-205.49080572,0.00021763,2]
[363328883,1748676651984,-345.9895388,0.00021771,28]
[363328884,1748676651993,-2500.0,0.00021778,2]
[363328885,1748676652002,-3000.0,0.00021778,2]
[363328886,1748676652012,-1963.34401357,0.00021797,6]
[363328887,1748676652021,-151.0,0.000218,2]
[363328888,1748676652031,-385.104233,0.000218,2]
[363328889,1748676652040,-385.104233,0.000218,2]
[363328890,1748676652049,-310.432691,0.000218,2]
[363328891,1748676652059,-310.432691,0.000218,2]
[363328892,1748676652068,-188.022513,0.000218,2]
[363328893,1748676652078,-188.022513,0.000218,2]
[363328894,1748676652087,-695.623823,0.000218,2]
[363328895,1748676652098,-695.623823,0.000218,2]
[363328896,1748676652107,-2001.96560727,0.000218,4]
[363328897,1748676652117,-200.0,0.0002181,3]
[363328898,1748676652126,-153.0,0.00021836,2]
[363328899,1748676652135,-572.078714,0.00021836,2]
[363328900,1748676652144,-176.3696131,0.00021836,2]
[363328901,1748676652153,-153.0,0.00021836,2]
[363328902,1748676652163,-12500.0,0.00021872,2]
[363328903,1748676652172,-151.0,0.00021872,2]
[363328904,1748676652181,-346.129461,0.00021872,2]
[363328905,1748676652190,-346.129461,0.00021872,2]
[363328906,1748676652200,-296.662294,0.00021883,2]
[363328907,1748676652210,-296.662294,0.00021883,2]
[363328908,1748676652223,-249.70303,0.00021883,2]
[363328909,1748676652232,-407.978989,0.00021883,2]
[363328910,1748676652241,-407.978989,0.00021883,2]
[363328911,1748676652251,-156.456511,0.00021883,2]
[363328912,1748676652261,-156.456511,0.00021883,2]
[363328913,1748676652271,-151.0,0.0002189,2]
[363328914,1748676652280,-151.0,0.0002189,2]
[363328915,1748676652290,-41492.56334192,0.0002189,2]
[363328916,1748676652301,-151.0,0.0002189,2]
[363328917,1748676652313,-151.0,0.0002189,2]
[363328918,1748676652323,-151.0,0.0002189,2]
[363328919,1748676652332,-151.0,0.0002189,2]
[363328920,1748676652341,-152.724527,0.0002189,2]
[363328921,1748676652351,-151.0,0.0002189,2]
[363328922,1748676652360,-2420.97245,0.0002189,2]
[363328923,1748676652370,-2420.97245,0.0002189,2]
[363328924,1748676652379,-151.0,0.0002189,2]
[363328925,1748676652389,-364.3142842,0.0002189,2]
[363328926,1748676652400,-364.3142842,0.0002189,2]
[363328927,1748676652410,-364.3142842,0.0002189,2]
[363328928,1748676652420,-364.3142842,0.0002189,2]
[363328929,1748676652429,-364.3142842,0.0002189,2]
[363328930,1748676652439,-364.1762952,0.0002189,2]
[363328931,1748676652448,-934.14,0.000219,2]
[363328932,1748676652457,-12500.0,0.000219,2]
[363328933,1748676652467,-1514.726438,0.000219,5]
[363328934,1748676652477,-3742.59133857,0.000219,2]
[363328935,1748676652486,-637.0,0.000219,2]
[363328936,1748676652495,-708.0,0.00021915,2]
[363328937,1748676652506,-2227.0,0.00021915,2]
[363328938,1748676652515,-405.0,0.00021915,2]
[363328939,1748676652524,-200.0,0.00021917,2]
[363328940,1748676652534,-603.14,0.00021917,2]
[363328941,1748676652543,-317.62,0.00021917,2]
[363328942,1748676652552,-500.0,0.00021917,2]
[363328943,1748676652564,-500.0,0.00021917,2]
[363328944,1748676652574,-500.0,0.00021917,2]
[363328945,1748676652583,-500.0,0.00021917,2]
[363328946,1748676652592,-614.84628992,0.00021917,2]
[363328947,1748676652601,-430.0,0.00021917,2]
[363328948,1748676652611,-699.2,0.00021917,2]
[363328949,1748676652620,-618.07,0.00021917,2]
[363328950,1748676652629,-1237.53,0.00021917,2]
[363328951,1748676652638,-1471.72,0.00021917,2]
[363328952,1748676652648,-1692.96,0.00021917,2]
[363328953,1748676652657,-1014.98,0.00021917,2]
[363328954,1748676652667,-1240.81,0.00021917,2]
[363328955,1748676652677,-602.09,0.00021917,2]
[363328956,1748676652686,-4949.7,0.00021917,2]
[363328957,1748676652696,-456.21,0.00021917,2]
[363328958,1748676652705,-889.6,0.00021917,2]
[363328959,1748676652714,-613.13,0.00021917,2]
[363328960,1748676652724,-548.65,0.00021917,2]
[363328961,1748676652733,-722.57,0.00021917,2]
[363328962,1748676652743,-1150.08,0.00021917,2]
[363328963,1748676652752,-1528.78,0.00021917,2]
[363328964,1748676652762,-438.38,0.00021917,2]
[363328965,1748676652772,-376.864955,0.00021919,7]
[363328966,1748676652781,-376.864955,0.00021919,7]
[363328967,1748676652790,-1000.0,0.0002192,5]
[363328968,1748676652800,-345.9895388,0.00021926,29]
[363328969,1748676652809,-2200.0,0.00021926,2]
[363328970,1748676652818,-48705.28638217,0.0002193,3]
[363328971,1748676652827,-1000.0,0.0002194,5]
[363328972,1748676652837,-1000.0,0.0002196,5]
[363328973,1748676652846,-33093.41057359,0.00021969,2]
[363328974,1748676652856,-500.0,0.00021973,2]
[363328975,1748676652866,-500.0,0.00021973,2]
[363328976,1748676652876,-500.0,0.00021973,2]
[363328977,1748676652885,-513.8154229,0.00021973,2]
[363328978,1748676652895,-500.0,0.00021973,2]
[363328979,1748676652904,-500.0,0.00021973,2]
[363328980,1748676652914,-500.0,0.00021973,2]
[363328981,1748676652923,-500.0,0.00021973,2]
[363328982,1748676652933,-500.0,0.00021973,2]
[363328983,1748676652942,-500.0,0.00021973,2]
[363328984,1748676652952,-500.0,0.00021973,2]
[363328985,1748676652961,-1000.0,0.0002198,5]
[363328986,1748676652971,-1717.54898101,0.0002199,7]
[363328987,1748676652980,-164.021384,0.0002199,7]
[363328988,1748676652990,-164.021384,0.0002199,7]
[363328989,1748676653000,-160.0,0.00021995,5]
[363328990,1748676653010,-160.0,0.00021995,5]
[363328991,1748676653019,-4296.29648423,0.00021998,2]
[363329000,1748677207640,161.615473,0.00013699,2]
[363329004,1748677631175,-1000.0,0.00014822,2]
[363329005,1748677631198,-1000.0,0.00014822,2]
[363329006,1748677631219,-1000.0,0.00014825,2]
[363329007,1748677631242,-300.0,0.00014961,2]
[363329008,1748677631263,-9055.88606862,0.00014962,2]
[363329009,1748677634174,-944.11393138,0.00014962,2]
[363329010,1748677634224,-204.60806042,0.00015173,2]
[363329011,1748677634273,-300.0,0.00015273,2]
[363329012,1748677634322,-22.35850915,0.00015273,2]
[363329013,1748677646101,-301.46217628,0.00015273,2]
[363329014,1748677651089,-688.51564512,0.00015273,2]
[363329015,1748677745170,-300.0,0.00015272,2]
[363329016,1748677745194,-187.66366945,0.00015273,2]
[363329017,1748677745217,-300.0,0.00015273,2]
[363329018,1748677745241,-500.0,0.00015273,2]
[363329019,1748677745265,-500.0,0.00015273,2]
[363329020,1748677745287,-223.15787332,0.00015273,2]
[363329021,1748677745311,-498.13799403,0.00015273,2]
[363329022,1748677745334,-500.0,0.00015273,2]
[363329023,1748677745357,-500.0,0.00015273,2]
[363329024,1748677745382,-380.04541141,0.00015273,2]
[363329025,1748677745404,-300.0,0.00015273,2]
[363329026,1748677745426,-14236.68314661,0.00015274,2]
[363329027,1748677745448,-11279.1917846,0.00015274,2]
[363329028,1748677745470,-230.857165,0.0001535,2]
[363329029,1748677745492,-1000.0,0.00015505,2]
[363329030,1748677745514,-162.67483649,0.00015587,2]
[363329031,1748677745536,-2595.94405565,0.00015687,2]
[363329032,1748677750100,-69.77702835,0.00015687,2]
[363329034,1748677767174,-492.16007226,0.00016399,2]
[363329035,1748677767220,-500.0,0.00016399,2]
[363329036,1748677767264,-500.0,0.00016399,2]
[363329037,1748677767311,-500.0,0.00016399,2]
[363329038,1748677767355,-500.0,0.00016399,2]
[363329039,1748677767405,-500.0,0.00016399,2]
[363329040,1748677767449,-212.70189605,0.00016399,2]
[363329041,1748677797945,183.94765301,0.00015945,2]
[363329061,1748677832404,-300.0,0.00016398,2]
[363329062,1748677832415,-287.29810395,0.00016399,2]
[363329063,1748677832424,-500.0,0.00016399,2]
[363329064,1748677832433,-559.70465555,0.00016399,2]
[363329065,1748677832442,-500.0,0.00016399,2]
[363329066,1748677832452,-500.0,0.00016399,2]
[363329067,1748677832462,-76.396414,0.00016399,2]
[363329068,1748677832474,-423.603586,0.00016399,2]
[363329069,1748677832483,-500.0,0.00016399,2]
[363329070,1748677832493,-550.0,0.00016399,2]
[363329071,1748677832502,-208.8939346,0.00016399,2]
[363329072,1748677832512,-314.3774794,0.000164,2]
[363329073,1748677832523,-1029.68057,0.000164,2]
[363329074,1748677832536,-38491.65086,0.000164,2]
[363329075,1748677832546,-1000.0,0.00016437,2]
[363329076,1748677832556,-1000.0,0.00016437,2]
[363329077,1748677832566,-1000.0,0.00016437,2]
[363329078,1748677832577,-1000.0,0.00016437,2]
[363329079,1748677832587,-1000.0,0.00016437,2]
[363329080,1748677832596,-599.39978271,0.00016437,2]
[363329081,1748677832607,-273.42,0.00016438,2]
[363329082,1748677832616,-461.47155028,0.00016438,2]
[363329083,1748677832626,-430.0,0.00016438,2]
[363329084,1748677832636,-304.91553664,0.00016438,2]
[363329085,1748677832646,-430.0,0.00016438,2]
[363329086,1748677832655,-332.894643,0.00016438,2]
[363329087,1748677832665,-430.0,0.00016438,2]
[363329088,1748677832674,-430.0,0.00016438,2]
[363329089,1748677832683,-510.4,0.00016438,2]
[363329090,1748677832692,-430.0,0.00016438,2]
[363329091,1748677832703,-430.0,0.00016438,2]
[363329092,1748677832714,-430.0,0.00016438,2]
[363329093,1748677832723,-430.0,0.00016438,2]
[363329094,1748677832733,-560.89,0.00016438,2]
[363329095,1748677832743,-430.0,0.00016438,2]
[363329096,1748677832754,-430.0,0.00016438,2]
[363329097,1748677832764,-430.0,0.00016438,2]
[363329098,1748677832774,-430.0,0.00016438,2]
[363329099,1748677832784,-455.62787558,0.00016438,2]
[363329100,1748677832794,-430.0,0.00016438,2]
[363329101,1748677832804,-468.31550143,0.00016438,2]
[363329102,1748677832813,-212.52,0.00016438,2]
[363329103,1748677832823,-430.0,0.00016438,2]
[363329104,1748677832833,-430.0,0.00016438,2]
[363329105,1748677832843,-353.62,0.00016438,2]
[363329106,1748677832853,-338.97422129,0.00016438,2]
[363329107,1748677832866,-430.0,0.00016438,2]
[363329108,1748677832876,-430.0,0.00016438,2]
[363329109,1748677832886,-430.0,0.00016438,2]
[363329110,1748677832896,-430.0,0.00016438,2]
[363329111,1748677832906,-1032.37,0.00016438,2]
[363329112,1748677832915,-430.0,0.00016438,2]
[363329113,1748677832924,-972.6,0.00016438,2]
[363329114,1748677832934,-430.0,0.00016438,2]
[363329115,1748677832943,-752.9,0.00016438,2]
[363329116,1748677832953,-264.46,0.00016438,2]
[363329117,1748677832963,-435.60604679,0.00016438,2]
[363329118,1748677832972,-502.9,0.00016438,2]
[363329119,1748677832984,-430.0,0.00016438,2]
[363329120,1748677832994,-430.0,0.00016438,2]
[363329121,1748677833004,-492.67,0.00016438,2]
[363329122,1748677833014,-430.0,0.00016438,2]
[363329123,1748677833023,-430.0,0.00016438,2]
[363329124,1748677833033,-430.0,0.00016438,2]
[363329125,1748677833043,-430.0,0.00016438,2]
[363329126,1748677833053,-430.0,0.00016438,2]
[363329127,1748677833063,-430.0,0.00016438,2]
[363329128,1748677833073,-430.0,0.00016438,2]
[363329129,1748677833083,-430.0,0.00016438,2]
[363329130,1748677833093,-430.0,0.00016438,2]
[363329131,1748677833103,-430.0,0.00016438,2]
[363329132,1748677833113,-158.58,0.00016438,2]
[363329133,1748677833123,-430.0,0.00016438,2]
[363329134,1748677833133,-495.54,0.00016438,2]
[363329135,1748677833143,-450.35244279,0.00016438,2]
[363329136,1748677833153,-995.13,0.00016438,2]
[363329137,1748677833162,-1581.64,0.00016438,2]
[363329138,1748677833171,-714.49,0.00016438,2]
[363329139,1748677833181,-1153.87,0.00016438,2]
[363329140,1748677833191,-430.0,0.00016438,2]
[363329141,1748677833201,-376.32,0.00016438,2]
[363329142,1748677833212,-243.55685996,0.00016438,2]
[363329143,1748677833222,-430.0,0.00016438,2]
[363329144,1748677833232,-430.0,0.00016438,2]
[363329145,1748677833242,-430.0,0.00016438,2]
[363329146,1748677833251,-430.0,0.00016438,2]
[363329147,1748677833261,-430.0,0.00016438,2]
[363329148,1748677833270,-430.0,0.00016438,2]
[363329149,1748677833280,-430.0,0.00016438,2]
[363329150,1748677833289,-430.0,0.00016438,2]
[363329151,1748677833299,-430.0,0.00016438,2]
[363329152,1748677833308,-430.0,0.00016438,2]
[363329153,1748677833318,-430.0,0.00016438,2]
[363329154,1748677833328,-430.0,0.00016438,2]
[363329155,1748677833338,-430.0,0.00016438,2]
[363329156,1748677833347,-482.77,0.00016438,2]
[363329157,1748677833357,-430.0,0.00016438,2]
[363329158,1748677833367,-430.0,0.00016438,2]
[363329159,1748677833377,-427.92,0.00016438,2]
[363329160,1748677833387,-222.64,0.00016438,2]
[363329161,1748677833397,-430.0,0.00016438,2]
[363329162,1748677833407,-430.0,0.00016438,2]
[363329163,1748677833417,-430.0,0.00016438,2]
[363329164,1748677833427,-400.6395,0.00016438,2]
[363329165,1748677833437,-1988.74959729,0.00016438,2]
[363329184,1748677842671,-2888.72040271,0.00016438,2]
[363329185,1748677842681,-884.71,0.00016438,2]
[363329186,1748677842691,-430.0,0.00016438,2]
[363329187,1748677842700,-430.0,0.00016438,2]
[363329188,1748677842712,-430.0,0.00016438,2]
[363329189,1748677842722,-521.38,0.00016438,2]
[363329190,1748677842731,-430.0,0.00016438,2]
[363329192,1748677842741,-430.0,0.00016438,2]
[363329194,1748677842751,-430.0,0.00016438,2]
[363329196,1748677842760,-430.0,0.00016438,2]
[363329198,1748677842770,-616.06,0.00016438,2]
[363329200,1748677842779,-430.0,0.00016438,2]
[363329202,1748677842790,-430.0,0.00016438,2]
[363329203,1748677842800,-430.0,0.00016438,2]
[363329205,1748677842810,-430.0,0.00016438,2]
[363329206,1748677842819,-430.0,0.00016438,2]
[363329207,1748677842828,-852.09,0.00016438,2]
[363329208,1748677842838,-430.0,0.00016438,2]
[363329209,1748677842848,-430.0,0.00016438,2]
[363329210,1748677842858,-420.0,0.00016711,2]
[363329211,1748677842867,-430.0,0.00016712,2]
[363329212,1748677842876,-430.0,0.00016712,2]
[363329213,1748677842886,-430.0,0.00016712,2]
[363329214,1748677842895,-430.0,0.00016712,2]
[363329215,1748677842904,-430.0,0.00016712,2]
[363329217,1748677842914,-483.01974166,0.00016712,2]
[363329218,1748677842923,-430.0,0.00016712,2]
[363329219,1748677842933,-430.0,0.00016712,2]
[363329220,1748677842942,-430.0,0.00016712,2]
[363329221,1748677842952,-1032.37,0.00016712,2]
[363329222,1748677842961,-972.6,0.00016712,2]
[363329223,1748677842971,-430.0,0.00016712,2]
[363329224,1748677842980,-752.9,0.00016712,2]
[363329225,1748677842990,-430.0,0.00016712,2]
[363329226,1748677842999,-430.0,0.00016712,2]
[363329227,1748677843008,-492.67,0.00016712,2]
[363329228,1748677843017,-430.0,0.00016712,2]
[363329229,1748677843027,-430.0,0.00016712,2]
[363329230,1748677843035,-399.64,0.00016712,2]
[363329231,1748677843044,-434.37216938,0.00016712,2]
[363329232,1748677843053,-430.0,0.00016712,2]
[363329233,1748677843062,-430.0,0.00016712,2]
[363329234,1748677843072,-995.13,0.00016712,2]
[363329235,1748677843081,-1581.64,0.00016712,2]
[363329236,1748677843091,-714.49,0.00016712,2]
[363329237,1748677843100,-1153.87,0.00016712,2]
[363329238,1748677843109,-430.0,0.00016712,2]
[363329239,1748677843118,-430.0,0.00016712,2]
[363329240,1748677843127,-430.0,0.00016712,2]
[363329241,1748677843136,-430.0,0.00016712,2]
[363329242,1748677843146,-430.0,0.00016712,2]
[363329243,1748677843155,-430.0,0.00016712,2]
[363329244,1748677843164,-430.0,0.00016712,2]
[363329245,1748677843174,-430.0,0.00016712,2]
[363329246,1748677843183,-430.0,0.00016712,2]
[363329247,1748677843193,-482.77,0.00016712,2]
[363329248,1748677843202,-430.0,0.00016712,2]
[363329249,1748677843211,-430.0,0.00016712,2]
[363329250,1748677843221,-430.0,0.00016712,2]
[363329251,1748677843230,-430.0,0.00016712,2]
[363329252,1748677843239,-430.0,0.00016712,2]
[363329253,1748677843248,-4877.47,0.00016712,2]
[363329254,1748677843257,-430.0,0.00016712,2]
[363329255,1748677843267,-430.0,0.00016712,2]
[363329256,1748677843276,-430.0,0.00016712,2]
[363329257,1748677843285,-521.38,0.00016712,2]
[363329258,1748677843294,-401.53332796,0.00016712,2]
[363329259,1748677843303,-430.0,0.00016712,2]
[363329260,1748677843313,-616.06,0.00016712,2]
[363329261,1748677843322,-430.0,0.00016712,2]
[363329262,1748677843332,-430.0,0.00016712,2]
[363329263,1748677843341,-430.0,0.00016712,2]
[363329264,1748677843351,-430.0,0.00016712,2]
[363329265,1748677843360,-852.09,0.00016712,2]
[363329266,1748677843369,-430.0,0.00016712,2]
[363329267,1748677843378,-430.0,0.00016712,2]
[363329268,1748677843387,-3128.82,0.00016985,2]
[363329269,1748677843395,-462.03,0.00016985,2]
[363329270,1748677843404,-430.0,0.00016985,2]
[363329271,1748677843414,-430.0,0.00016986,2]
[363329272,1748677843423,-430.0,0.00016986,2]
[363329273,1748677843432,-430.0,0.00016986,2]
[363329274,1748677843441,-430.0,0.00016986,2]
[363329275,1748677843450,-430.0,0.00016986,2]
[363329276,1748677843459,-430.0,0.00016986,2]
[363329277,1748677843468,-1032.37,0.00016986,2]
[363329278,1748677843477,-972.6,0.00016986,2]
[363329279,1748677843487,-430.0,0.00016986,2]
[363329280,1748677843496,-752.9,0.00016986,2]
[363329281,1748677843505,-430.0,0.00016986,2]
[363329282,1748677843514,-430.0,0.00016986,2]
[363329283,1748677843522,-492.67,0.00016986,2]
[363329284,1748677843530,-430.0,0.00016986,2]
[363329285,1748677843538,-430.0,0.00016986,2]
[363329286,1748677843547,-430.0,0.00016986,2]
[363329287,1748677843555,-430.0,0.00016986,2]
[363329288,1748677843563,-995.13,0.00016986,2]
[363329289,1748677843572,-1581.64,0.00016986,2]
[363329290,1748677843581,-714.49,0.00016986,2]
[363329291,1748677843590,-1153.87,0.00016986,2]
[363329292,1748677843598,-430.0,0.00016986,2]
[363329293,1748677843606,-430.0,0.00016986,2]
[363329294,1748677843615,-326.5580705,0.00016986,2]
[363329295,1748677843623,-430.0,0.00016986,2]
[363329296,1748677843632,-430.0,0.00016986,2]
[363329297,1748677843640,-430.0,0.00016986,2]
[363329298,1748677843648,-482.77,0.00016986,2]
[363329299,1748677843657,-430.0,0.00016986,2]
[363329300,1748677843665,-430.0,0.00016986,2]
[363329301,1748677843674,-430.0,0.00016986,2]
[363329302,1748677843682,-430.0,0.00016986,2]
[363329303,1748677843690,-4877.47,0.00016986,2]
[363329304,1748677843699,-430.0,0.00016986,2]
[363329305,1748677843709,-430.0,0.00016986,2]
[363329306,1748677843719,-521.38,0.00016986,2]
[363329307,1748677843729,-430.0,0.00016986,2]
[363329308,1748677843737,-616.06,0.00016986,2]
[363329309,1748677843747,-430.0,0.00016986,2]
[363329310,1748677843757,-430.0,0.00016986,2]
[363329311,1748677843766,-852.09,0.00016986,2]
[363329312,1748677843775,-430.0,0.00016986,2]
[363329313,1748677843784,-430.0,0.00016986,2]
[363329314,1748677843793,-1100.0,0.00017068,2]
[363329315,1748677843803,-162.08606631,0.00017159,2]